[Event "*** SCC Grand Prix: Titled Tuesday Blitz"]
[Site "Chess.com"]
[Date "2020.08.25"]
[Round "2"]
[White "Msb2"]
[Black "regular_legs"]
[Result "1-0"]
[WhiteElo "2830"]
[BlackElo "2519"]
[TimeControl "180+1"]
[EndTime "10:15:38 PDT"]
[Termination "Msb2 won by resignation"]

1. d4 {[%clk 0:03:00.9]} 1... Nf6 {[%clk 0:02:59.7]} 2. c4 {[%clk 0:03:01.5]}
2... g6 {[%clk 0:02:59.8]} 3. Nc3 {[%clk 0:03:02]} 3... d5 {[%clk 0:03:00.4]} 4.
cxd5 {[%clk 0:03:00]} 4... Nxd5 {[%clk 0:03:01.3]} 5. e4 {[%clk 0:03:00.6]} 5...
Nxc3 {[%clk 0:03:01.1]} 6. bxc3 {[%clk 0:03:01.5]} 6... Bg7 {[%clk 0:03:01.5]}
7. Bc4 {[%clk 0:03:02.2]} 7... c5 {[%clk 0:03:00.6]} 8. Ne2 {[%clk 0:03:02.9]}
8... Nc6 {[%clk 0:03:01.1]} 9. Be3 {[%clk 0:03:03.5]} 9... O-O {[%clk
0:03:00.4]} 10. Rc1 {[%clk 0:03:04]} 10... cxd4 {[%clk 0:02:49.3]} 11. cxd4
{[%clk 0:03:04.9]} 11... Qa5+ {[%clk 0:02:49.8]} 12. Rc3 {[%clk 0:03:04.3]}
12... e5 {[%clk 0:02:06]} 13. d5 {[%clk 0:03:03.5]} 13... Nd4 {[%clk 0:02:06]}
14. Qd2 {[%clk 0:02:49.4]} 14... Nxe2 {[%clk 0:01:58]} 15. Bxe2 {[%clk
0:02:47.5]} 15... Bd7 {[%clk 0:01:58.9]} 16. O-O {[%clk 0:02:43.5]} 16... f5
{[%clk 0:01:19.3]} 17. Rfc1 {[%clk 0:02:32.1]} 17... fxe4 {[%clk 0:01:01.7]} 18.
Rc7 {[%clk 0:02:29.9]} 18... Bf5 {[%clk 0:00:57.4]} 19. Qxa5 {[%clk 0:02:29]}
1-0

[Event "*** SCC Grand Prix: Titled Tuesday Blitz"]
[Site "Chess.com"]
[Date "2020.08.25"]
[Round "2"]
[White "stolencandy13"]
[Black "ElGasanov"]
[Result "0-1"]
[WhiteElo "2503"]
[BlackElo "2769"]
[TimeControl "180+1"]
[EndTime "10:15:41 PDT"]
[Termination "ElGasanov won by resignation"]

1. e4 {[%clk 0:03:00.9]} 1... c5 {[%clk 0:02:58.3]} 2. Nf3 {[%clk 0:02:59.2]}
2... Nc6 {[%clk 0:02:58.8]} 3. d4 {[%clk 0:02:59]} 3... cxd4 {[%clk 0:02:59.4]}
4. Nxd4 {[%clk 0:02:59.9]} 4... Nf6 {[%clk 0:02:59.8]} 5. Nc3 {[%clk 0:02:59.9]}
5... g6 {[%clk 0:03:00.5]} 6. f3 {[%clk 0:02:59.2]} 6... Bg7 {[%clk 0:02:59.4]}
7. Be3 {[%clk 0:02:59.8]} 7... O-O {[%clk 0:02:59.5]} 8. Qd2 {[%clk 0:03:00.3]}
8... d5 {[%clk 0:02:59.6]} 9. Nxc6 {[%clk 0:02:44.4]} 9... bxc6 {[%clk
0:03:00.5]} 10. O-O-O {[%clk 0:02:43.5]} 10... Qa5 {[%clk 0:02:45]} 11. Kb1
{[%clk 0:02:38.2]} 11... Rb8 {[%clk 0:02:45.4]} 12. Nxd5 {[%clk 0:02:24.3]}
12... Rxb2+ {[%clk 0:02:35.2]} 13. Kxb2 {[%clk 0:02:11.9]} 13... Nxe4+ {[%clk
0:02:35.7]} 14. Bd4 {[%clk 0:01:28.4]} 14... Nxd2 {[%clk 0:02:31]} 15. Nxe7+
{[%clk 0:01:28.5]} 15... Kh8 {[%clk 0:02:31.3]} 16. Nxc6 {[%clk 0:01:05.1]}
16... Qb6+ {[%clk 0:02:22]} 17. Kc1 {[%clk 0:00:57.4]} 17... Bxd4 {[%clk
0:02:17]} 18. Nxd4 {[%clk 0:00:56.8]} 18... Qxd4 {[%clk 0:02:16.9]} 0-1

[Event "*** SCC Grand Prix: Titled Tuesday Blitz"]
[Site "Chess.com"]
[Date "2020.08.25"]
[Round "2"]
[White "1977Ivan"]
[Black "zmeeed67"]
[Result "1-0"]
[WhiteElo "2689"]
[BlackElo "2463"]
[TimeControl "180+1"]
[EndTime "10:15:55 PDT"]
[Termination "1977Ivan won by resignation"]

1. d4 {[%clk 0:03:00.9]} 1... Nc6 {[%clk 0:02:58.6]} 2. e4 {[%clk 0:02:54.6]}
2... d6 {[%clk 0:02:57.8]} 3. Nc3 {[%clk 0:02:47.4]} 3... Nf6 {[%clk 0:02:57.5]}
4. d5 {[%clk 0:02:46.7]} 4... Ne5 {[%clk 0:02:47.7]} 5. f4 {[%clk 0:02:47.1]}
5... Ned7 {[%clk 0:02:47.6]} 6. Nf3 {[%clk 0:02:46.9]} 6... c6 {[%clk
0:02:43.3]} 7. dxc6 {[%clk 0:02:45.3]} 7... bxc6 {[%clk 0:02:42.8]} 8. e5 {[%clk
0:02:45.8]} 8... Ng4 {[%clk 0:02:10.7]} 9. Ng5 {[%clk 0:02:29.5]} 9... Nb6
{[%clk 0:01:46]} 10. e6 {[%clk 0:02:27.8]} 10... Nh6 {[%clk 0:01:42.7]} 11. f5
{[%clk 0:02:17.2]} 11... f6 {[%clk 0:01:20.8]} 12. Qh5+ {[%clk 0:02:13.6]} 12...
g6 {[%clk 0:01:20.8]} 13. fxg6 {[%clk 0:02:14]} 13... Qc7 {[%clk 0:00:47.6]} 14.
g7+ {[%clk 0:02:11]} 1-0

[Event "*** SCC Grand Prix: Titled Tuesday Blitz"]
[Site "Chess.com"]
[Date "2020.08.25"]
[Round "2"]
[White "romulocardoso"]
[Black "MattyDPerrine"]
[Result "0-1"]
[WhiteElo "1995"]
[BlackElo "2364"]
[TimeControl "180+1"]
[EndTime "10:16:05 PDT"]
[Termination "MattyDPerrine won by resignation"]

1. e4 {[%clk 0:03:00.9]} 1... c5 {[%clk 0:02:52.2]} 2. Nf3 {[%clk 0:03:00.3]}
2... e6 {[%clk 0:02:50.8]} 3. d4 {[%clk 0:03:00.4]} 3... cxd4 {[%clk 0:02:51.7]}
4. Nxd4 {[%clk 0:03:01.3]} 4... Nf6 {[%clk 0:02:52]} 5. Nc3 {[%clk 0:03:01.4]}
5... Nc6 {[%clk 0:02:52.4]} 6. Be2 {[%clk 0:03:00]} 6... Bb4 {[%clk 0:02:48.6]}
7. O-O {[%clk 0:02:58.2]} 7... Bxc3 {[%clk 0:02:47.6]} 8. bxc3 {[%clk
0:02:59.1]} 8... Nxe4 {[%clk 0:02:47.5]} 9. Qd3 {[%clk 0:02:59]} 9... d5 {[%clk
0:02:45.4]} 10. Ba3 {[%clk 0:02:58.1]} 10... Qa5 {[%clk 0:02:30.2]} 11. c4
{[%clk 0:02:57.3]} 11... Nxd4 {[%clk 0:02:25.7]} 12. Qxd4 {[%clk 0:02:56.3]}
12... Qxa3 {[%clk 0:02:26]} 13. cxd5 {[%clk 0:02:56.7]} 13... Nf6 {[%clk
0:02:17.1]} 14. Bb5+ {[%clk 0:02:55.2]} 14... Ke7 {[%clk 0:02:13.9]} 15. c4
{[%clk 0:02:43]} 15... a6 {[%clk 0:02:04.3]} 16. Bc6 {[%clk 0:02:27]} 16... bxc6
{[%clk 0:02:02]} 17. dxc6 {[%clk 0:02:27.9]} 17... Qd6 {[%clk 0:01:58.7]} 18.
Qb6 {[%clk 0:02:26.3]} 18... Bd7 {[%clk 0:01:37.4]} 19. Rfd1 {[%clk 0:02:25.2]}
19... Qxc6 {[%clk 0:01:35.5]} 20. Qb4+ {[%clk 0:02:24.8]} 20... Ke8 {[%clk
0:01:34.9]} 21. Rd6 {[%clk 0:02:24.6]} 21... Qc7 {[%clk 0:01:27.8]} 22. Rad1
{[%clk 0:02:24.1]} 22... Rb8 {[%clk 0:01:15.9]} 23. Qc3 {[%clk 0:02:16.6]} 23...
Qxd6 {[%clk 0:00:59.4]} 24. Rxd6 {[%clk 0:02:11.9]} 24... Rb1+ {[%clk
0:00:59.1]} 0-1

[Event "*** SCC Grand Prix: Titled Tuesday Blitz"]
[Site "Chess.com"]
[Date "2020.08.25"]
[Round "2"]
[White "Violord"]
[Black "barbara25"]
[Result "1-0"]
[WhiteElo "2625"]
[BlackElo "2266"]
[TimeControl "180+1"]
[EndTime "10:16:21 PDT"]
[Termination "Violord won by resignation"]

1. e4 {[%clk 0:02:53.8]} 1... c5 {[%clk 0:02:59.2]} 2. Nf3 {[%clk 0:02:53]} 2...
d6 {[%clk 0:02:58.3]} 3. Bb5+ {[%clk 0:02:52.1]} 3... Nd7 {[%clk 0:02:58.1]} 4.
c3 {[%clk 0:02:48.6]} 4... Nf6 {[%clk 0:02:57.5]} 5. Qe2 {[%clk 0:02:47.7]} 5...
a6 {[%clk 0:02:53.2]} 6. Ba4 {[%clk 0:02:47.6]} 6... e5 {[%clk 0:02:53.1]} 7.
O-O {[%clk 0:02:44.9]} 7... Be7 {[%clk 0:02:53.1]} 8. d4 {[%clk 0:02:44.9]} 8...
O-O {[%clk 0:02:52.2]} 9. dxe5 {[%clk 0:02:43.8]} 9... Nxe5 {[%clk 0:02:51.2]}
10. Nxe5 {[%clk 0:02:43.2]} 10... dxe5 {[%clk 0:02:51.2]} 11. c4 {[%clk
0:02:43.4]} 11... Qc7 {[%clk 0:02:49.2]} 12. Nc3 {[%clk 0:02:42.6]} 12... Be6
{[%clk 0:02:48]} 13. Bc2 {[%clk 0:02:35.7]} 13... h6 {[%clk 0:02:45]} 14. a4
{[%clk 0:02:32.3]} 14... Rad8 {[%clk 0:02:41.4]} 15. a5 {[%clk 0:02:32]} 15...
b6 {[%clk 0:02:35.9]} 16. axb6 {[%clk 0:02:28.5]} 16... Qxb6 {[%clk 0:02:36]}
17. Nd5 {[%clk 0:02:24.7]} 17... Bxd5 {[%clk 0:02:32.4]} 18. cxd5 {[%clk
0:02:18.6]} 18... a5 {[%clk 0:02:32.4]} 19. Ra2 {[%clk 0:02:14.2]} 19... Bd6
{[%clk 0:02:31.7]} 20. Bd2 {[%clk 0:02:13.4]} 20... Ra8 {[%clk 0:02:30.8]} 21.
Rfa1 {[%clk 0:02:12.5]} 21... Nh7 {[%clk 0:02:25.5]} 22. Bxa5 {[%clk 0:02:08.5]}
22... Qb7 {[%clk 0:02:24.8]} 23. Bc3 {[%clk 0:02:07.5]} 23... Rxa2 {[%clk
0:02:24.1]} 24. Rxa2 {[%clk 0:02:07.1]} 24... Ra8 {[%clk 0:02:24.5]} 25. Rxa8+
{[%clk 0:02:05.6]} 25... Qxa8 {[%clk 0:02:24.4]} 26. h3 {[%clk 0:02:05.6]} 26...
Nf6 {[%clk 0:02:20.3]} 27. Bd3 {[%clk 0:01:58.3]} 27... g6 {[%clk 0:02:14.5]}
28. g3 {[%clk 0:01:57.7]} 28... Qc8 {[%clk 0:02:13]} 29. Kg2 {[%clk 0:01:57.3]}
29... Kg7 {[%clk 0:02:12.6]} 30. Bc2 {[%clk 0:01:55.9]} 30... h5 {[%clk
0:02:07.6]} 31. Qb5 {[%clk 0:01:51.3]} 31... Nh7 {[%clk 0:01:59.8]} 32. h4
{[%clk 0:01:45.8]} 32... Qd8 {[%clk 0:01:55.9]} 33. Qc6 {[%clk 0:01:37.4]} 33...
g5 {[%clk 0:01:55.4]} 34. hxg5 {[%clk 0:01:33.1]} 34... Qxg5 {[%clk 0:01:55]}
35. Qxd6 {[%clk 0:01:28.6]} 1-0

[Event "*** SCC Grand Prix: Titled Tuesday Blitz"]
[Site "Chess.com"]
[Date "2020.08.25"]
[Round "2"]
[White "AldokhinIvan"]
[Black "korkmaz16"]
[Result "0-1"]
[WhiteElo "2543"]
[BlackElo "2299"]
[TimeControl "180+1"]
[EndTime "10:16:21 PDT"]
[Termination "korkmaz16 won on time"]

1. d4 {[%clk 0:02:53.1]} 1... d5 {[%clk 0:02:56.7]} 2. c4 {[%clk 0:02:53.3]}
2... e5 {[%clk 0:02:56.1]} 3. dxe5 {[%clk 0:02:53]} 3... d4 {[%clk 0:02:56.3]}
4. Nf3 {[%clk 0:02:53.2]} 4... Nc6 {[%clk 0:02:56.4]} 5. g3 {[%clk 0:02:52.2]}
5... Be6 {[%clk 0:02:55.1]} 6. Bg2 {[%clk 0:02:52.2]} 6... Qd7 {[%clk
0:02:55.4]} 7. Nbd2 {[%clk 0:02:47.8]} 7... Bh3 {[%clk 0:02:47.5]} 8. O-O {[%clk
0:02:47.6]} 8... Bxg2 {[%clk 0:02:47]} 9. Kxg2 {[%clk 0:02:48.5]} 9... O-O-O
{[%clk 0:02:45.8]} 10. a3 {[%clk 0:02:46.6]} 10... Nge7 {[%clk 0:02:42.7]} 11.
b4 {[%clk 0:02:46.4]} 11... Ng6 {[%clk 0:02:42.6]} 12. Qa4 {[%clk 0:02:41.4]}
12... Kb8 {[%clk 0:02:41.9]} 13. Bb2 {[%clk 0:02:32.1]} 13... h5 {[%clk
0:02:38.7]} 14. h4 {[%clk 0:02:27.8]} 14... Qg4 {[%clk 0:02:37.1]} 15. Rad1
{[%clk 0:01:59.3]} 15... Nf4+ {[%clk 0:02:33.7]} 16. Kh1 {[%clk 0:01:47.9]}
16... Qh3+ {[%clk 0:02:33]} 0-1

[Event "*** SCC Grand Prix: Titled Tuesday Blitz"]
[Site "Chess.com"]
[Date "2020.08.25"]
[Round "2"]
[White "ditkin25"]
[Black "Skatchkov_V"]
[Result "0-1"]
[WhiteElo "2431"]
[BlackElo "2675"]
[TimeControl "180+1"]
[EndTime "10:16:30 PDT"]
[Termination "Skatchkov_V won by resignation"]

1. e4 {[%clk 0:03:00.9]} 1... e5 {[%clk 0:02:59.7]} 2. Nf3 {[%clk 0:03:00.6]}
2... Nf6 {[%clk 0:03:00.4]} 3. Nc3 {[%clk 0:02:58.7]} 3... Nc6 {[%clk
0:03:00.1]} 4. Be2 {[%clk 0:02:58.6]} 4... d5 {[%clk 0:02:59.6]} 5. exd5 {[%clk
0:02:59.5]} 5... Nxd5 {[%clk 0:02:59]} 6. O-O {[%clk 0:03:00.1]} 6... Nxc3
{[%clk 0:02:57.1]} 7. bxc3 {[%clk 0:03:01]} 7... e4 {[%clk 0:02:56.4]} 8. Ne1
{[%clk 0:03:01.5]} 8... Bd6 {[%clk 0:02:50.2]} 9. f3 {[%clk 0:03:01.9]} 9... Bf5
{[%clk 0:02:43.8]} 10. Rb1 {[%clk 0:02:56.7]} 10... O-O {[%clk 0:02:39.9]} 11.
Rxb7 {[%clk 0:02:46.2]} 11... Bc5+ {[%clk 0:02:36.7]} 12. Kh1 {[%clk 0:02:40.6]}
12... Bb6 {[%clk 0:02:36.8]} 13. fxe4 {[%clk 0:02:27.9]} 13... Bxe4 {[%clk
0:02:36.1]} 14. Bf3 {[%clk 0:02:28.4]} 14... Bd5 {[%clk 0:02:22.3]} 15. c4
{[%clk 0:01:58.5]} 15... Bxc4 {[%clk 0:02:13.8]} 16. Bxc6 {[%clk 0:01:58.4]}
16... Bxf1 {[%clk 0:02:11.4]} 17. Rxb6 {[%clk 0:01:58.7]} 17... axb6 {[%clk
0:02:07.9]} 18. Bxa8 {[%clk 0:01:58.8]} 18... Qxa8 {[%clk 0:02:06]} 19. d3
{[%clk 0:01:59.2]} 19... Re8 {[%clk 0:02:03.8]} 20. Qf3 {[%clk 0:01:38.2]} 20...
Qxf3 {[%clk 0:01:58.9]} 21. Nxf3 {[%clk 0:01:39.1]} 21... Re2 {[%clk 0:01:58.2]}
22. Kg1 {[%clk 0:01:33.4]} 22... Rxc2 {[%clk 0:01:53.2]} 23. Kxf1 {[%clk
0:01:19]} 23... Rxc1+ {[%clk 0:01:53]} 24. Ne1 {[%clk 0:01:19.9]} 24... Ra1
{[%clk 0:01:50.7]} 25. Kf2 {[%clk 0:01:20.3]} 25... Rxa2+ {[%clk 0:01:50.5]} 26.
Ke3 {[%clk 0:01:21.1]} 26... Kf8 {[%clk 0:01:50.3]} 27. h3 {[%clk 0:01:20.4]}
27... Ke7 {[%clk 0:01:50.7]} 28. g4 {[%clk 0:01:20.2]} 28... Rh2 {[%clk
0:01:51]} 29. Ke4 {[%clk 0:01:13.9]} 29... Re2+ {[%clk 0:01:49.9]} 0-1

[Event "*** SCC Grand Prix: Titled Tuesday Blitz"]
[Site "Chess.com"]
[Date "2020.08.25"]
[Round "2"]
[White "szachuspl"]
[Black "IrinaDrogovoz"]
[Result "0-1"]
[WhiteElo "2504"]
[BlackElo "2290"]
[TimeControl "180+1"]
[EndTime "10:16:38 PDT"]
[Termination "IrinaDrogovoz won by resignation"]

1. d4 {[%clk 0:03:00.9]} 1... Nf6 {[%clk 0:02:59.5]} 2. c4 {[%clk 0:02:58.7]}
2... g6 {[%clk 0:02:59.9]} 3. Nc3 {[%clk 0:02:58.5]} 3... d5 {[%clk 0:03:00.6]}
4. Nf3 {[%clk 0:02:57.8]} 4... Bg7 {[%clk 0:03:00.6]} 5. Bf4 {[%clk 0:02:58.4]}
5... O-O {[%clk 0:03:00.1]} 6. e3 {[%clk 0:02:58.9]} 6... c5 {[%clk 0:02:56.4]}
7. dxc5 {[%clk 0:02:57.8]} 7... Qa5 {[%clk 0:02:52.2]} 8. cxd5 {[%clk
0:02:53.9]} 8... Nxd5 {[%clk 0:02:48.3]} 9. Rc1 {[%clk 0:02:48.6]} 9... Nxc3
{[%clk 0:02:45.2]} 10. bxc3 {[%clk 0:02:48.1]} 10... Bxc3+ {[%clk 0:02:43.1]}
11. Nd2 {[%clk 0:02:48.3]} 11... Rd8 {[%clk 0:02:39.5]} 12. Rxc3 {[%clk
0:02:31.2]} 12... Qxc3 {[%clk 0:02:39.1]} 13. Be2 {[%clk 0:02:31.5]} 13... Nc6
{[%clk 0:02:33.9]} 14. e4 {[%clk 0:02:31.2]} 14... Be6 {[%clk 0:02:12.7]} 15.
O-O {[%clk 0:02:28.7]} 15... Qxc5 {[%clk 0:02:11.8]} 16. Be3 {[%clk 0:02:28.2]}
16... Nd4 {[%clk 0:02:11.3]} 17. Bg4 {[%clk 0:02:20.3]} 17... Bxg4 {[%clk
0:02:04.9]} 18. Qxg4 {[%clk 0:02:20]} 18... Qc8 {[%clk 0:01:56]} 19. Qh4 {[%clk
0:02:17.1]} 19... Qe6 {[%clk 0:01:55.2]} 20. Rb1 {[%clk 0:02:02.9]} 20... b6
{[%clk 0:01:54.7]} 21. Bh6 {[%clk 0:01:54.4]} 21... Rac8 {[%clk 0:01:53.4]} 22.
Re1 {[%clk 0:01:44]} 22... Nc2 {[%clk 0:01:49.5]} 23. Rf1 {[%clk 0:01:41.7]}
23... Nd4 {[%clk 0:01:48.8]} 24. Kh1 {[%clk 0:01:39.3]} 24... Rc2 {[%clk
0:01:48.5]} 25. a4 {[%clk 0:01:38]} 25... Ra2 {[%clk 0:01:44.7]} 26. f4 {[%clk
0:01:30.8]} 26... Rxd2 {[%clk 0:01:37.2]} 27. f5 {[%clk 0:01:30.7]} 27... Qc4
{[%clk 0:01:37.6]} 28. Rg1 {[%clk 0:01:25.6]} 28... Nxf5 {[%clk 0:01:30.1]} 29.
Qg5 {[%clk 0:01:23.9]} 29... Nxh6 {[%clk 0:01:29]} 0-1

[Event "*** SCC Grand Prix: Titled Tuesday Blitz"]
[Site "Chess.com"]
[Date "2020.08.25"]
[Round "2"]
[White "Aradej"]
[Black "Efremov_Vlad"]
[Result "0-1"]
[WhiteElo "2413"]
[BlackElo "2212"]
[TimeControl "180+1"]
[EndTime "10:16:48 PDT"]
[Termination "Efremov_Vlad won by resignation"]

1. d4 {[%clk 0:03:00.9]} 1... d5 {[%clk 0:02:59.7]} 2. Bf4 {[%clk 0:03:00.1]}
2... Nf6 {[%clk 0:03:00.1]} 3. e3 {[%clk 0:03:00.3]} 3... c5 {[%clk 0:02:59.3]}
4. c3 {[%clk 0:02:59.9]} 4... Nc6 {[%clk 0:02:59.5]} 5. Nd2 {[%clk 0:02:59.9]}
5... e6 {[%clk 0:02:59.7]} 6. Ngf3 {[%clk 0:02:58.5]} 6... cxd4 {[%clk
0:02:59.9]} 7. exd4 {[%clk 0:02:58.1]} 7... Nh5 {[%clk 0:03:00.4]} 8. Be3 {[%clk
0:02:56.1]} 8... Bd6 {[%clk 0:02:58.1]} 9. Bd3 {[%clk 0:02:56.1]} 9... g6 {[%clk
0:02:57.8]} 10. O-O {[%clk 0:02:56]} 10... f6 {[%clk 0:02:57]} 11. c4 {[%clk
0:02:46.6]} 11... O-O {[%clk 0:02:49.7]} 12. Re1 {[%clk 0:02:46.1]} 12... Ng7
{[%clk 0:02:48.1]} 13. Bf1 {[%clk 0:02:45.1]} 13... Qc7 {[%clk 0:02:36.8]} 14.
Rc1 {[%clk 0:02:42.1]} 14... Qf7 {[%clk 0:02:23.3]} 15. a3 {[%clk 0:02:40.4]}
15... a5 {[%clk 0:02:21.3]} 16. Qb3 {[%clk 0:02:31.4]} 16... Nf5 {[%clk
0:02:14.9]} 17. Qc3 {[%clk 0:02:14.8]} 17... Nxe3 {[%clk 0:02:09.1]} 18. Qxe3
{[%clk 0:02:12.5]} 18... Bd7 {[%clk 0:02:05.8]} 19. Qb3 {[%clk 0:02:10]} 19...
Rab8 {[%clk 0:02:03.8]} 20. Qa2 {[%clk 0:02:05.5]} 20... g5 {[%clk 0:01:52.4]}
21. h3 {[%clk 0:02:04]} 21... h5 {[%clk 0:01:51.3]} 22. Nb3 {[%clk 0:02:00.1]}
22... g4 {[%clk 0:01:48.1]} 23. hxg4 {[%clk 0:01:58.8]} 23... hxg4 {[%clk
0:01:49]} 24. Nh2 {[%clk 0:01:54]} 24... Bxh2+ {[%clk 0:01:38.3]} 25. Kxh2
{[%clk 0:01:53.6]} 25... Qh5+ {[%clk 0:01:36.8]} 26. Kg1 {[%clk 0:01:53.6]}
26... Kg7 {[%clk 0:01:36.7]} 27. f4 {[%clk 0:01:36.9]} 27... gxf3 {[%clk
0:01:24.1]} 28. Rc3 {[%clk 0:01:32.6]} 28... Qh4 {[%clk 0:01:12.6]} 0-1

[Event "*** SCC Grand Prix: Titled Tuesday Blitz"]
[Site "Chess.com"]
[Date "2020.08.25"]
[Round "2"]
[White "zmarian"]
[Black "Shuvalov"]
[Result "1-0"]
[WhiteElo "2181"]
[BlackElo "2399"]
[TimeControl "180+1"]
[EndTime "10:16:57 PDT"]
[Termination "zmarian won by resignation"]

1. g3 {[%clk 0:02:58.8]} 1... d5 {[%clk 0:02:59.5]} 2. Bg2 {[%clk 0:02:58.4]}
2... Nf6 {[%clk 0:02:59.3]} 3. c4 {[%clk 0:02:57.9]} 3... c6 {[%clk 0:02:58.4]}
4. Nf3 {[%clk 0:02:57.7]} 4... dxc4 {[%clk 0:02:56.7]} 5. O-O {[%clk 0:02:56.7]}
5... Nbd7 {[%clk 0:02:56.4]} 6. a4 {[%clk 0:02:56.3]} 6... Nc5 {[%clk
0:02:55.6]} 7. Na3 {[%clk 0:02:55.2]} 7... Nb3 {[%clk 0:02:53]} 8. Ra2 {[%clk
0:02:53.4]} 8... Be6 {[%clk 0:02:52]} 9. Ng5 {[%clk 0:02:48.7]} 9... Qd7 {[%clk
0:02:46.2]} 10. Nxe6 {[%clk 0:02:47]} 10... Qxe6 {[%clk 0:02:47.1]} 11. Qc2
{[%clk 0:02:38.8]} 11... Qxe2 {[%clk 0:02:35.1]} 12. Nxc4 {[%clk 0:02:37.8]}
12... Nd4 {[%clk 0:02:31.8]} 13. Qc3 {[%clk 0:02:29.9]} 13... Rd8 {[%clk
0:02:23.4]} 14. Kh1 {[%clk 0:02:06]} 14... e5 {[%clk 0:02:12.2]} 15. d3 {[%clk
0:02:01.1]} 15... Be7 {[%clk 0:02:04]} 16. Re1 {[%clk 0:01:58.9]} 16... Qxf2
{[%clk 0:01:57.2]} 17. Be3 {[%clk 0:01:45.8]} 17... Qf5 {[%clk 0:01:49.5]} 18.
Bxd4 {[%clk 0:01:42.9]} 18... exd4 {[%clk 0:01:47.3]} 19. Qb4 {[%clk 0:01:37.7]}
19... Rd7 {[%clk 0:01:43.9]} 20. Rxe7+ {[%clk 0:01:26.5]} 20... Kd8 {[%clk
0:01:27.2]} 21. Rxd7+ {[%clk 0:01:22.9]} 21... Qxd7 {[%clk 0:01:28.1]} 22. Qd6
{[%clk 0:01:17.7]} 22... Re8 {[%clk 0:01:25.3]} 23. Qxd7+ {[%clk 0:01:17.1]}
23... Kxd7 {[%clk 0:01:26.2]} 24. Ra1 {[%clk 0:01:16.5]} 24... Re2 {[%clk
0:01:24.5]} 25. Kg1 {[%clk 0:01:14.1]} 25... Ng4 {[%clk 0:01:21.7]} 26. Bf3
{[%clk 0:01:10.7]} 1-0

[Event "*** SCC Grand Prix: Titled Tuesday Blitz"]
[Site "Chess.com"]
[Date "2020.08.25"]
[Round "2"]
[White "Barmen_EV"]
[Black "EnergeticHay"]
[Result "1-0"]
[WhiteElo "2427"]
[BlackElo "2188"]
[TimeControl "180+1"]
[EndTime "10:16:59 PDT"]
[Termination "Barmen_EV won by checkmate"]

1. d4 {[%clk 0:03:00.9]} 1... Nf6 {[%clk 0:02:58.8]} 2. c4 {[%clk 0:03:01.8]}
2... g6 {[%clk 0:02:58.8]} 3. Nc3 {[%clk 0:03:01.9]} 3... Bg7 {[%clk 0:02:59.7]}
4. e4 {[%clk 0:03:00.6]} 4... d6 {[%clk 0:02:59.9]} 5. f4 {[%clk 0:03:01.5]}
5... O-O {[%clk 0:03:00.1]} 6. Nf3 {[%clk 0:03:01.7]} 6... c5 {[%clk 0:02:59.7]}
7. d5 {[%clk 0:03:01.8]} 7... e6 {[%clk 0:02:59.6]} 8. Be2 {[%clk 0:03:02]} 8...
exd5 {[%clk 0:02:59.4]} 9. cxd5 {[%clk 0:03:02.9]} 9... Re8 {[%clk 0:02:58.7]}
10. e5 {[%clk 0:03:03.8]} 10... dxe5 {[%clk 0:02:54.2]} 11. fxe5 {[%clk
0:03:04.7]} 11... Ng4 {[%clk 0:02:54.2]} 12. Bg5 {[%clk 0:03:05.6]} 12... Qa5
{[%clk 0:02:52.5]} 13. O-O {[%clk 0:03:04.8]} 13... Nxe5 {[%clk 0:02:49.4]} 14.
d6 {[%clk 0:03:03.7]} 14... Be6 {[%clk 0:02:39.2]} 15. Nd5 {[%clk 0:03:01]}
15... Bxd5 {[%clk 0:02:37.5]} 16. Qxd5 {[%clk 0:03:01.9]} 16... Nbd7 {[%clk
0:02:31.1]} 17. Nxe5 {[%clk 0:02:57.7]} 17... Nxe5 {[%clk 0:02:29.3]} 18. Bc4
{[%clk 0:02:53.5]} 18... Qb6 {[%clk 0:01:49.3]} 19. Rxf7 {[%clk 0:02:37.6]}
19... Nxf7 {[%clk 0:01:48.2]} 20. Qxf7+ {[%clk 0:02:38.5]} 20... Kh8 {[%clk
0:01:48.2]} 21. Bf6 {[%clk 0:02:39.4]} 21... Rg8 {[%clk 0:01:40.9]} 22. Rd1
{[%clk 0:02:33.7]} 22... Bxf6 {[%clk 0:01:35.5]} 23. Qxf6+ {[%clk 0:02:34.6]}
23... Rg7 {[%clk 0:01:35.6]} 24. Qe5 {[%clk 0:02:19.1]} 24... Rf8 {[%clk
0:01:16.3]} 25. d7 {[%clk 0:02:15.5]} 25... h6 {[%clk 0:00:58.3]} 26. Qe8 {[%clk
0:02:05.8]} 26... Qd8 {[%clk 0:00:53.5]} 27. Qxf8+ {[%clk 0:02:03.8]} 27... Qxf8
{[%clk 0:00:52.7]} 28. d8=Q {[%clk 0:02:04.7]} 28... Qxd8 {[%clk 0:00:47.9]} 29.
Rxd8+ {[%clk 0:02:05.6]} 29... Kh7 {[%clk 0:00:48]} 30. h4 {[%clk 0:02:06.2]}
30... Re7 {[%clk 0:00:46.5]} 31. Bd3 {[%clk 0:02:04.6]} 31... Re3 {[%clk
0:00:44.7]} 32. h5 {[%clk 0:02:03.6]} 32... Re1+ {[%clk 0:00:42.9]} 33. Kf2
{[%clk 0:02:03.2]} 33... Ra1 {[%clk 0:00:43.8]} 34. Rd7+ {[%clk 0:02:01.6]}
34... Kh8 {[%clk 0:00:43.3]} 35. hxg6 {[%clk 0:02:02.5]} 35... Rxa2 {[%clk
0:00:42.4]} 36. g7+ {[%clk 0:02:03.4]} 36... Kg8 {[%clk 0:00:42.1]} 37. Bc4+
{[%clk 0:02:04.3]} 37... Kh7 {[%clk 0:00:41.6]} 38. g8=Q# {[%clk 0:02:05.2]} 1-0

[Event "*** SCC Grand Prix: Titled Tuesday Blitz"]
[Site "Chess.com"]
[Date "2020.08.25"]
[Round "2"]
[White "rdclayton"]
[Black "denispopov"]
[Result "1-0"]
[WhiteElo "2348"]
[BlackElo "1867"]
[TimeControl "180+1"]
[EndTime "10:16:59 PDT"]
[Termination "rdclayton won by resignation"]

1. e4 {[%clk 0:03:00.9]} 1... c5 {[%clk 0:02:59.6]} 2. Nf3 {[%clk 0:02:59.9]}
2... Nc6 {[%clk 0:02:59.8]} 3. d4 {[%clk 0:03:00]} 3... cxd4 {[%clk 0:03:00.7]}
4. Nxd4 {[%clk 0:03:00.4]} 4... e5 {[%clk 0:03:01]} 5. Nb5 {[%clk 0:02:59.8]}
5... a6 {[%clk 0:03:01.4]} 6. Nd6+ {[%clk 0:02:54.8]} 6... Bxd6 {[%clk
0:03:01.1]} 7. Qxd6 {[%clk 0:02:55.7]} 7... Qf6 {[%clk 0:03:01.8]} 8. Qxf6
{[%clk 0:02:46.2]} 8... Nxf6 {[%clk 0:03:02.7]} 9. Nc3 {[%clk 0:02:38.1]} 9...
Nb4 {[%clk 0:03:01.9]} 10. Kd1 {[%clk 0:02:36.6]} 10... d6 {[%clk 0:02:52.5]}
11. Bg5 {[%clk 0:02:31.4]} 11... Be6 {[%clk 0:02:48.7]} 12. a3 {[%clk
0:02:23.1]} 12... Nc6 {[%clk 0:02:47.8]} 13. Bd3 {[%clk 0:01:41.3]} 13... O-O-O
{[%clk 0:02:41.6]} 14. Nd5 {[%clk 0:01:33]} 14... Bxd5 {[%clk 0:02:13.6]} 15.
exd5 {[%clk 0:01:33.1]} 15... Ne7 {[%clk 0:02:14.1]} 16. c4 {[%clk 0:01:32.7]}
16... h6 {[%clk 0:02:13]} 17. Be3 {[%clk 0:01:24.8]} 17... Kb8 {[%clk 0:02:03]}
18. h3 {[%clk 0:01:15.9]} 18... Rc8 {[%clk 0:01:59.2]} 19. Kd2 {[%clk
0:01:14.8]} 19... b5 {[%clk 0:01:54.3]} 20. b3 {[%clk 0:01:09.8]} 20... bxc4
{[%clk 0:01:52.7]} 21. bxc4 {[%clk 0:01:10.7]} 21... Ka8 {[%clk 0:01:44.2]} 22.
Rab1 {[%clk 0:01:04]} 22... Rb8 {[%clk 0:01:37.9]} 23. Rb4 {[%clk 0:01:03.9]}
23... a5 {[%clk 0:01:35.5]} 24. Ra4 {[%clk 0:01:03.5]} 24... Rb2+ {[%clk
0:01:20.5]} 25. Kc3 {[%clk 0:01:02.5]} 25... Rhb8 {[%clk 0:01:20.5]} 26. Rxa5+
{[%clk 0:01:01.7]} 1-0